fUST/lending_fUST_20240117
["ID","MTS","AMOUNT","RATE_DAILY","PERIOD"]
[311925826,1705503042227,-500.0,0.00022054,2]
[311925827,1705503042238,-500.0,0.00022054,2]
[311925828,1705503042249,-500.0,0.00022191,2]
[311925829,1705503042261,-546.15047069,0.00022191,2]
[311925830,1705503042273,-500.0,0.00022191,2]
[311925831,1705503042285,-500.0,0.00022191,2]
[311925832,1705503042296,-500.0,0.00022191,2]
[311925833,1705503042308,-500.0,0.00022191,2]
[311925834,1705503042320,-1000.0,0.00022191,2]
[311925835,1705503042332,-500.0,0.00022191,2]
[311925836,1705503042352,-500.0,0.00022191,2]
[311925837,1705503042364,-500.0,0.00022191,2]
[311925838,1705503042376,-954.63,0.00022191,2]
[311925839,1705503042390,-169.87318135,0.00022191,2]
[311925840,1705503042411,-330.12681865,0.00022191,2]
[311925841,1705503042423,-500.0,0.00022191,2]
[311925842,1705503042434,-1877.91,0.00022191,2]
[311925843,1705503042446,-1312.18,0.00022191,2]
[311925844,1705503042460,-500.0,0.00022191,2]
[311925845,1705503042471,-162.22477016,0.00022191,2]
[311925846,1705503042585,-9052.24,0.00021907,3]
[311925847,1705503042597,-337.77522984,0.00022191,2]
[311925848,1705503042608,-2687.87,0.00022191,2]
[311925849,1705503042619,-500.0,0.00022191,2]
[311925850,1705503042630,-500.0,0.00022191,2]
[311925851,1705503042642,-680.64,0.00022191,2]
[311925852,1705503042652,-569.89221065,0.00022191,2]
[311925853,1705503042663,-500.0,0.00022191,2]
[311925854,1705503042673,-157.49040084,0.00022191,2]
[311925855,1705503042684,-607.72,0.00022191,2]
[311925856,1705503042695,-500.0,0.00022191,2]
[311925857,1705503042707,-635.39,0.00022191,2]
[311925858,1705503042717,-501.79,0.00022191,2]
[311925859,1705503042728,-500.0,0.00022191,2]
[311925860,1705503042739,-500.0,0.00022191,2]
[311925861,1705503042748,-1023.43,0.00022191,2]
[311925862,1705503042758,-500.0,0.00022191,2]
[311925863,1705503042768,-500.0,0.00022191,2]
[311925864,1705503042778,-500.0,0.00022191,2]
[311925865,1705503042788,-500.0,0.00022191,2]
[311925866,1705503042798,-500.0,0.00022191,2]
[311925867,1705503042808,-500.0,0.00022191,2]
[311925868,1705503042818,-500.0,0.00022191,2]
[311925869,1705503042829,-1152.63,0.00022191,2]
[311925870,1705503042840,-500.0,0.00022191,2]
[311925871,1705503042850,-500.0,0.00022191,2]
[311925872,1705503042860,-743.7,0.00022191,2]
[311925873,1705503042870,-665.32,0.00022191,2]
[311925874,1705503042880,-500.0,0.00022191,2]
[311925875,1705503042890,-500.0,0.00022191,2]
[311925876,1705503042900,-500.0,0.00022191,2]
[311925877,1705503042910,-500.0,0.00022191,2]
[311925878,1705503042920,-500.0,0.00022191,2]
[311925879,1705503042931,-500.0,0.00022191,2]
[311925880,1705503042944,-5838.9,0.00022191,2]
[311925881,1705503042954,-505.04589673,0.00022191,2]
[311925882,1705503042963,-500.0,0.00022191,2]
[311925883,1705503042973,-500.0,0.00022191,2]
[311925884,1705503042990,-1156.53,0.00022191,2]
[311925885,1705503042999,-500.0,0.00022191,2]
[311925886,1705503043009,-500.0,0.00022191,2]
[311925887,1705503043018,-500.0,0.00022191,2]
[311925888,1705503043028,-500.0,0.00022191,2]
[311925889,1705503043037,-669.55,0.00022191,2]
[311925890,1705503043047,-500.0,0.00022191,2]
[311925891,1705503043057,-500.0,0.00022191,2]
[311925892,1705503043066,-500.0,0.00022191,2]
[311925893,1705503043076,-500.0,0.00022191,2]
[311925894,1705503043086,-1936.02,0.00022191,2]
[311925895,1705503043095,-1521.01,0.00022191,2]
[311925896,1705503043105,-732.4,0.00022191,2]
[311925897,1705503043116,-621.67,0.00022191,2]
[311925898,1705503043125,-500.0,0.00022191,2]
[311925899,1705503043135,-500.0,0.00022191,2]
[311925900,1705503043147,-500.0,0.00022191,2]
[311925901,1705503043156,-1457.2,0.00022191,2]
[311925902,1705503043165,-532.94481838,0.00022191,2]
[311925903,1705503043175,-2477.86,0.00022191,2]
[311925904,1705503043185,-13786.79,0.00022191,2]
[311925905,1705503043194,-741.27,0.00022191,2]
[311925906,1705503043205,-305.08682904,0.00022191,2]
[311925907,1705503043215,-500.0,0.00022191,2]
[311925908,1705503043224,-500.0,0.00022191,2]
[311925909,1705503043233,-505.42235422,0.00022191,2]
[311925910,1705503043243,-500.0,0.00022191,2]
[311925911,1705503043253,-500.0,0.00022191,2]
[311925912,1705503043263,-500.0,0.00022191,2]
[311925913,1705503043272,-500.0,0.00022191,2]
[311925914,1705503043282,-500.0,0.00022191,2]
[311925915,1705503043291,-1159.85,0.00022191,2]
[311925916,1705503043301,-1629.75,0.00022191,2]
[311925917,1705503043310,-500.0,0.00022191,2]
[311925923,1705503043385,-500.0,0.00022191,2]
[311925925,1705503043395,-500.0,0.00022191,2]
[311925927,1705503043405,-500.0,0.00022191,2]
[311925929,1705503043417,-13665.75,0.00022191,2]
[311925931,1705503043428,-500.0,0.00022191,2]
[311925933,1705503043438,-750.12,0.00022191,2]
[311925935,1705503043449,-2164.07,0.00022191,2]
[311925938,1705503043460,-500.0,0.00022191,2]
[311925941,1705503043470,-500.0,0.00022191,2]
[311925942,1705503043480,-1397.08,0.00022191,2]
[311925944,1705503043491,-500.0,0.00022191,2]
[311925946,1705503043501,-677.52,0.00022191,2]
[311925948,1705503043511,-587.98,0.00022191,2]
[311925949,1705503043521,-500.0,0.00022191,2]
[311925950,1705503043532,-500.0,0.00022191,2]
[311925951,1705503043542,-5345.94,0.00022191,2]
[311925952,1705503043558,-6594.35,0.00022191,2]
[311925953,1705503043568,-23673.1,0.00022191,2]
[311925954,1705503043577,-500.0,0.00022191,2]
[311925955,1705503043587,-500.0,0.00022191,2]
[311925956,1705503043596,-2454.85,0.00022191,2]
[311925957,1705503043606,-7925.49,0.00022191,2]
[311925958,1705503043616,-500.0,0.00022191,2]
[311925959,1705503043625,-500.0,0.00022191,2]
[311925960,1705503043635,-2548.48,0.00022191,2]
[311925961,1705503043645,-500.0,0.00022191,2]
[311925962,1705503043656,-500.0,0.00022191,2]
[311925963,1705503043665,-500.0,0.00022191,2]
[311925964,1705503043675,-500.0,0.00022191,2]
[311925965,1705503043684,-500.0,0.00022191,2]
[311925966,1705503043694,-627.90125829,0.00022328,2]
[311925967,1705503043707,-500.0,0.00022328,2]
[311925969,1705503043716,-500.0,0.00022328,2]
[311925971,1705503043725,-500.0,0.00022328,2]
[311925972,1705503043735,-500.0,0.00022328,2]
[311925974,1705503043744,-954.63,0.00022328,2]
[311925976,1705503043753,-500.0,0.00022328,2]
[311925977,1705503043762,-500.0,0.00022328,2]
[311925979,1705503043772,-1877.91,0.00022328,2]
[311925981,1705503043781,-1312.18,0.00022328,2]
[311925982,1705503043790,-500.0,0.00022328,2]
[311925984,1705503043800,-500.0,0.00022328,2]
[311925986,1705503043809,-2687.87,0.00022328,2]
[311925988,1705503043818,-500.0,0.00022328,2]
[311925990,1705503043828,-500.0,0.00022328,2]
[311925991,1705503043837,-680.64,0.00022328,2]
[311925993,1705503043846,-500.0,0.00022328,2]
[311925995,1705503043855,-607.72,0.00022328,2]
[311925997,1705503043865,-500.0,0.00022328,2]
[311925999,1705503043874,-352.26648062,0.00022328,2]
[311926001,1705503044081,-283.12351938,0.00022328,2]
[311926002,1705503044095,-501.79,0.00022328,2]
[311926003,1705503044109,-500.0,0.00022328,2]
[311926004,1705503044121,-1023.43,0.00022328,2]
[311926005,1705503044133,-500.0,0.00022328,2]
[311926006,1705503044145,-500.0,0.00022328,2]
[311926007,1705503044157,-179.03118606,0.00022328,2]
[311926008,1705503044169,-500.0,0.00022328,2]
[311926009,1705503044181,-500.0,0.00022328,2]
[311926010,1705503044194,-500.0,0.00022328,2]
[311926011,1705503044208,-500.0,0.00022328,2]
[311926012,1705503044220,-1152.63,0.00022328,2]
[311926013,1705503044231,-500.0,0.00022328,2]
[311926014,1705503044243,-500.0,0.00022328,2]
[311926015,1705503044255,-743.7,0.00022328,2]
[311926016,1705503044268,-665.32,0.00022328,2]
[311926017,1705503044280,-500.0,0.00022328,2]
[311926018,1705503044293,-500.0,0.00022328,2]
[311926019,1705503044305,-500.0,0.00022328,2]
[311926020,1705503044318,-500.0,0.00022328,2]
[311926021,1705503044331,-500.0,0.00022328,2]
[311926022,1705503044350,-5838.9,0.00022328,2]
[311926023,1705503044363,-500.0,0.00022328,2]
[311926024,1705503044372,-500.0,0.00022328,2]
[311926025,1705503044384,-1156.53,0.00022328,2]
[311926026,1705503044393,-500.0,0.00022328,2]
[311926027,1705503044402,-500.0,0.00022328,2]
[311926028,1705503044412,-669.55,0.00022328,2]
[311926029,1705503044422,-500.0,0.00022328,2]
[311926030,1705503044431,-500.0,0.00022328,2]
[311926031,1705503044440,-302.98557895,0.00022328,2]
[311926032,1705503044453,-1936.02,0.00022328,2]
[311926033,1705503044463,-1521.01,0.00022328,2]
[311926034,1705503044472,-732.4,0.00022328,2]
[311926035,1705503044481,-621.67,0.00022328,2]
[311926036,1705503044615,-500.0,0.00022328,2]
[311926037,1705503044627,-1457.2,0.00022328,2]
[311926038,1705503044637,-2477.86,0.00022328,2]
[311926039,1705503044646,-7530.20657596,0.00022328,2]
[311926040,1705503044658,-2301.83945829,0.00022328,2]
[311926041,1705503044678,-3954.74396575,0.00022328,2]
[311926042,1705503044687,-741.27,0.00022328,2]
[311926043,1705503044699,-500.0,0.00022328,2]
[311926044,1705503044708,-500.0,0.00022328,2]
[311926045,1705503044718,-500.0,0.00022328,2]
[311926046,1705503044728,-500.0,0.00022328,2]
[311926047,1705503044737,-500.0,0.00022328,2]
[311926048,1705503044747,-1159.85,0.00022328,2]
[311926049,1705503044756,-10.57702948,0.00022328,2]
[311926050,1705503044769,-1619.17297052,0.00022328,2]
[311926051,1705503044779,-500.0,0.00022328,2]
[311926052,1705503044788,-13665.75,0.00022328,2]
[311926053,1705503044797,-500.0,0.00022328,2]
[311926054,1705503044807,-750.12,0.00022328,2]
[311926055,1705503044816,-2164.07,0.00022328,2]
[311926056,1705503044825,-500.0,0.00022328,2]
[311926057,1705503044834,-500.0,0.00022328,2]
[311926058,1705503044844,-1397.08,0.00022328,2]
[311926059,1705503044853,-500.0,0.00022328,2]
[311926060,1705503044862,-677.52,0.00022328,2]
[311926061,1705503044871,-587.98,0.00022328,2]
[311926062,1705503044880,-500.0,0.00022328,2]
[311926063,1705503044889,-5345.94,0.00022328,2]
[311926064,1705503044898,-6594.35,0.00022328,2]
[311926065,1705503044907,-23673.1,0.00022328,2]
[311926066,1705503044919,-383.96915112,0.00022328,2]
[311926067,1705503044928,-2454.85,0.00022328,2]
[311926068,1705503044937,-7925.49,0.00022328,2]
[311926069,1705503044949,-215.52662606,0.00022328,2]
[311926070,1705503044958,-500.0,0.00022328,2]
[311926071,1705503044969,-2548.48,0.00022328,2]
[311926072,1705503044979,-500.0,0.00022328,2]
[311926073,1705503044989,-500.0,0.00022328,2]
[311926074,1705503044999,-500.0,0.00022328,2]
[311926075,1705503045009,-500.0,0.00022328,2]
[311926076,1705503045019,-150.0,0.00022396,2]
[311926077,1705503045029,-250.0,0.00022396,2]
[311926078,1705503045038,-166.666666,0.00022431,2]
[311926079,1705503045048,-500.0,0.00022465,2]
[311926080,1705503045058,-500.0,0.00022465,2]
[311926081,1705503045067,-500.0,0.00022465,2]
[311926082,1705503045076,-500.0,0.00022465,2]
[311926083,1705503045085,-954.63,0.00022465,2]
[311926084,1705503045094,-500.0,0.00022465,2]
[311926085,1705503045103,-1877.91,0.00022465,2]
[311926086,1705503045112,-1312.18,0.00022465,2]
[311926087,1705503045121,-500.0,0.00022465,2]
[311926088,1705503045130,-500.0,0.00022465,2]
[311926090,1705503045139,-2687.87,0.00022465,2]
[311926092,1705503045149,-500.0,0.00022465,2]
[311926094,1705503045158,-500.0,0.00022465,2]
[311926097,1705503045167,-680.64,0.00022465,2]
[311926100,1705503045177,-500.0,0.00022465,2]
[311926101,1705503045186,-607.72,0.00022465,2]
[311926102,1705503045195,-500.0,0.00022465,2]
[311926103,1705503045206,-635.39,0.00022465,2]
[311926105,1705503045215,-501.79,0.00022465,2]
[311926107,1705503045224,-500.0,0.00022465,2]
[311926110,1705503045233,-1023.43,0.00022465,2]
[311926113,1705503045242,-573.19967507,0.00022465,2]
[311926116,1705503045251,-500.0,0.00022465,2]
[311926119,1705503045260,-500.0,0.00022465,2]
[311926122,1705503045269,-500.0,0.00022465,2]
[311926124,1705503045278,-500.0,0.00022465,2]
[311926126,1705503045287,-500.0,0.00022465,2]
[311926128,1705503045296,-1152.63,0.00022465,2]
[311926129,1705503045305,-500.0,0.00022465,2]
[311926130,1705503045315,-267.97839823,0.00022465,2]
[311926185,1705503076578,229.17206579,0.0001867,5]
[311926189,1705503308720,-4755.63823203,0.00019453,2]
[311926190,1705503308827,-97.05384147,0.00019453,2]
[311926191,1705503389424,-154.93802479,0.00019294,2]
[311926192,1705503389456,-154.93802479,0.00019295,3]
[311926193,1705503389481,-40.91305097,0.00019296,2]
[311926194,1705503389623,-162.09698603,0.00019296,2]
[311926196,1705503536112,163.80732822,0.00018898,30]
[311926197,1705503627955,-154.9690062,0.00018896,3]
[311926198,1705503627981,-154.9690062,0.00018897,2]
[311926199,1705503628006,-86.93161368,0.00019677,2]
[311926200,1705503628085,-163.06838632,0.00019677,2]
[311926201,1705503686289,-154.9690062,0.00018898,3]
[311926202,1705503686318,-7121.26871336,0.00019566,2]
[311926203,1705503686455,-303.46365354,0.00019566,2]
[311926204,1705503764459,-154.95351395,0.00018898,3]
[311926205,1705503764488,-138.24993715,0.0001974,2]
[311926206,1705503764586,-160.93725785,0.0001974,2]
[311926247,1705504030093,-154.95351395,0.00018898,3]
[311926248,1705504030113,-1310.37653198,0.0002,2]
[311926308,1705504233281,-154.95351395,0.00018898,3]
[311926309,1705504233291,-195.763578,0.00019599,2]
[311926310,1705504233302,-2037.3106961,0.00019999,2]
[311926311,1705504233311,-849.41831623,0.0002,2]
[311926312,1705504233321,-677.90931289,0.0002,2]
[311926313,1705504233331,-2995.12470388,0.0002,2]
[311926314,1705504233341,-1196.71363385,0.00020193,2]
[311926315,1705504233351,-237.84642437,0.00020194,2]
[311926316,1705504233360,-156.64531482,0.00020217,2]
[311926317,1705504233370,-1949.51789462,0.00020228,2]
[311926318,1705504233379,-296.58305175,0.00020988,2]
[311926319,1705504233389,-7173.93965199,0.00020988,2]
[311926320,1705504233398,-690.5951713,0.00020988,2]
[311926321,1705504233408,-10293.05,0.00020988,3]
[311926322,1705504233417,-4047.19041287,0.00020989,2]
[311926323,1705504233427,-7341.24,0.0002099,3]
[311926324,1705504233436,-157.77559155,0.00020996,2]
[311926325,1705504233449,-155.19121382,0.00020996,2]
[311926326,1705504233459,-2060.84094292,0.00020996,2]
[311926327,1705504233468,-1142.90076131,0.00020996,2]
[311926328,1705504233477,-2000.88810436,0.00020996,2]
[311926329,1705504233487,-155.56443103,0.00020997,2]
[311926330,1705504233496,-644.16920761,0.00020997,2]
[311926331,1705504233505,-154.93802479,0.00020998,2]
[311926332,1705504233515,-1311.11511942,0.00020998,5]
[311926333,1705504233524,-154.9690062,0.00020998,2]
[311926334,1705504233533,-154.9690062,0.00020998,2]
[311926335,1705504233542,-154.9690062,0.00020998,2]
[311926336,1705504233551,-244.08253899,0.00020998,2]
[311926337,1705504233560,-380.98528004,0.00020998,2]
[311926338,1705504233570,-200.66690783,0.00020998,2]
[311926339,1705504233579,-9766.81423315,0.00020998,2]
[311926340,1705504233588,-1291.20960329,0.00020998,2]
[311926341,1705504233597,-1255.8233818,0.00020998,2]
[311926342,1705504233607,-337.55229462,0.00020998,2]
[311926343,1705504233616,-14470.37794941,0.00020998,2]
[311926344,1705504233625,-6202.81648611,0.00020998,2]
[311926347,1705504233962,1999.0,0.0003,120]
[311926355,1705504239110,-2081.22813402,0.00020998,2]
[311926357,1705504239119,-1168.62799703,0.00020999,2]
[311926358,1705504239131,-932.62004462,0.00020999,2]
[311926359,1705504239140,-3484.99657002,0.00021,2]
[311926360,1705504239148,-232.79062501,0.00021,2]
[311926361,1705504239156,-8294.0421131,0.00021,2]
[311926363,1705504239167,-2553.91505872,0.00021,2]
[311926364,1705504239178,-3988.17117999,0.00021,2]
[311926366,1705504239189,-13317.05033461,0.00021,2]
[311926368,1705504239199,-13710.64417414,0.00021,2]
[311926369,1705504239206,-249.51667028,0.00021,2]
[311926371,1705504239215,-327.18048,0.00021,2]
[311926372,1705504239223,-1000.0,0.000211,2]
[311926374,1705504239232,-307.6139369,0.00021852,2]
[311926376,1705504239241,-500.0,0.00021917,2]
[311926378,1705504239250,-500.0,0.00021917,2]
[311926380,1705504239259,-500.0,0.00021917,2]
[311926382,1705504239267,-500.0,0.00021917,2]
[311926384,1705504239276,-222.61017779,0.00021917,2]
[311926386,1705504239285,-1231.63,0.00021917,2]
[311926387,1705504239294,-500.0,0.00021917,2]
[311926389,1705504239303,-500.0,0.00021917,2]
[311926391,1705504239313,-500.0,0.00021917,2]
[311926393,1705504239322,-500.0,0.00021917,2]
[311926395,1705504239331,-500.0,0.00021917,2]
[311926397,1705504239340,-500.0,0.00021917,2]
[311926399,1705504239349,-1000.0,0.00021917,2]
[311926401,1705504239359,-500.0,0.00021917,2]
[311926403,1705504239368,-606.76,0.00021917,2]
[311926406,1705504239377,-500.0,0.00021917,2]
[311926408,1705504239385,-500.0,0.00021917,2]
[311926410,1705504239394,-500.0,0.00021917,2]
[311926413,1705504239414,-500.0,0.00021917,2]
[311926415,1705504239424,-500.0,0.00021917,2]
[311926418,1705504239434,-596.37,0.00021917,2]
[311926420,1705504239444,-510.71,0.00021917,2]
[311926422,1705504239456,-626.7,0.00021917,2]
[311926424,1705504239466,-506.24672197,0.00021917,2]
[311926426,1705504239475,-500.0,0.00021917,2]
[311926428,1705504239485,-500.0,0.00021917,2]
[311926430,1705504239495,-500.0,0.00021917,2]
[311926432,1705504239504,-500.0,0.00021917,2]
[311926434,1705504239513,-500.0,0.00021917,2]
[311926436,1705504239524,-500.0,0.00021917,2]
[311926438,1705504239533,-174.74456145,0.00021917,2]
[311926440,1705504239543,-506.0700257,0.00021917,2]
[311926442,1705504239553,-421.13330795,0.00021917,2]
[311926444,1705504239563,-500.0,0.00021917,2]
[311926446,1705504239572,-500.0,0.00021917,2]
[311926448,1705504239582,-500.0,0.00021917,2]
[311926450,1705504239591,-500.0,0.00021917,2]
[311926452,1705504239601,-500.0,0.00021917,2]
[311926454,1705504239611,-327.43482098,0.00021917,2]
[311926456,1705504239620,-500.0,0.00021917,2]
[311926457,1705504239630,-500.0,0.00021917,2]
[311926459,1705504239639,-500.0,0.00021917,2]
[311926461,1705504239649,-500.0,0.00021917,2]
[311926463,1705504239658,-925.73,0.00021917,2]
[311926465,1705504239669,-500.0,0.00021917,2]
[311926467,1705504239678,-500.0,0.00021917,2]
[311926469,1705504239691,-500.0,0.00021917,2]
[311926471,1705504239703,-500.0,0.00021917,2]
[311926473,1705504239714,-500.0,0.00021917,2]
[311926475,1705504239723,-500.0,0.00021917,2]
[311926477,1705504239733,-500.0,0.00021917,2]
[311926479,1705504239742,-500.0,0.00021917,2]
[311926481,1705504239753,-500.0,0.00021917,2]
[311926483,1705504239763,-575.28227044,0.00021917,2]
[311926485,1705504239772,-500.0,0.00021917,2]
[311926487,1705504239782,-500.0,0.00021917,2]
[311926489,1705504239792,-500.0,0.00021917,2]
[311926491,1705504239802,-500.0,0.00021917,2]
[311926493,1705504239812,-508.66142748,0.00021917,2]
[311926495,1705504239822,-1922.32,0.00021917,2]
[311926497,1705504239832,-500.0,0.00021917,2]
[311926499,1705504239841,-500.0,0.00021917,2]
[311926501,1705504239851,-500.0,0.00021917,2]
[311926503,1705504239861,-500.0,0.00021917,2]
[311926505,1705504239871,-500.0,0.00021917,2]
[311926507,1705504239881,-2772.8,0.00021917,2]
[311926509,1705504239891,-500.0,0.00021917,2]
[311926511,1705504239900,-500.0,0.00021917,2]
[311926513,1705504239910,-500.0,0.00021917,2]
[311926515,1705504239919,-500.0,0.00021917,2]
[311926517,1705504239929,-502.57805441,0.00021917,2]
[311926519,1705504239938,-500.0,0.00021917,2]
[311926521,1705504239947,-500.0,0.00021917,2]
[311926532,1705504240051,-500.0,0.00021917,2]
[311926534,1705504240061,-467.17315,0.00021917,2]
[311926537,1705504240071,-500.0,0.00021917,2]
[311926539,1705504240079,-500.0,0.00021917,2]
[311926542,1705504240089,-500.0,0.00021917,2]
[311926544,1705504240098,-500.0,0.00021917,2]
[311926547,1705504240108,-500.0,0.00021917,2]
[311926548,1705504240118,-500.0,0.00021917,2]
[311926550,1705504240127,-500.0,0.00021917,2]
[311926552,1705504240136,-500.0,0.00021917,2]
[311926554,1705504240146,-500.0,0.00021917,2]
[311926556,1705504240155,-500.0,0.00021917,2]
[311926558,1705504240164,-500.0,0.00021917,2]
[311926560,1705504240173,-500.0,0.00021917,2]
[311926562,1705504240182,-506.24435026,0.00021917,2]
[311926564,1705504240191,-720.39,0.00021917,2]
[311926566,1705504240202,-500.0,0.00021917,2]
[311926568,1705504240211,-500.0,0.00021917,2]
[311926570,1705504240220,-500.0,0.00021917,2]
[311926572,1705504240228,-597.39,0.00021917,2]
[311926574,1705504240237,-500.0,0.00021917,2]
[311926576,1705504240247,-500.0,0.00021917,2]
[311926578,1705504240256,-500.0,0.00021917,2]
[311926580,1705504240264,-500.0,0.00021917,2]
[311926582,1705504240274,-1006.04,0.00021917,2]
[311926584,1705504240283,-500.0,0.00021917,2]
[311926586,1705504240291,-587.34476944,0.00021917,2]
[311926588,1705504240300,-500.0,0.00021917,2]
[311926590,1705504240309,-500.0,0.00021917,2]
[311926592,1705504240318,-500.0,0.00021917,2]
[311926594,1705504240327,-500.0,0.00021917,2]
[311926595,1705504240336,-500.0,0.00021917,2]
[311926597,1705504240345,-500.0,0.00021917,2]
[311926600,1705504240355,-500.0,0.00021917,2]
[311926601,1705504240364,-500.0,0.00021917,2]
[311926603,1705504240372,-1362.15,0.00021917,2]
[311926605,1705504240382,-500.0,0.00021917,2]
[311926607,1705504240391,-767.89,0.00021917,2]
[311926609,1705504240400,-1140.46,0.00021917,2]
[311926611,1705504240409,-500.0,0.00021917,2]
[311926613,1705504240418,-500.0,0.00021917,2]
[311926615,1705504240427,-2148.0,0.00021917,2]
[311926617,1705504240436,-6084.07,0.00021917,2]
[311926619,1705504240445,-6934.8,0.00021917,2]
[311926621,1705504240462,-500.0,0.00021917,2]
[311926623,1705504240471,-500.0,0.00021917,2]
[311926625,1705504240480,-500.0,0.00021917,2]
[311926627,1705504240489,-500.0,0.00021917,2]
[311926629,1705504240498,-500.0,0.00021917,2]
[311926631,1705504240507,-500.0,0.00021917,2]
[311926633,1705504240516,-658.6,0.00021917,2]
[311926635,1705504240525,-500.0,0.00021917,2]
[311926637,1705504240535,-500.0,0.00021917,2]
[311926639,1705504240544,-2351.28,0.00021917,2]
[311926641,1705504240553,-500.0,0.00021917,2]
[311926643,1705504240562,-500.0,0.00021917,2]
[311926645,1705504240572,-652.19,0.00021917,2]
[311926647,1705504240581,-500.0,0.00021917,2]
[311926649,1705504240590,-501.62550056,0.00021917,2]
[311926651,1705504240599,-500.0,0.00021917,2]
[311926653,1705504240608,-500.0,0.00021917,2]
[311926655,1705504240618,-500.0,0.00021917,2]
[311926657,1705504240627,-500.0,0.00021917,2]
[311926658,1705504240636,-214.55184681,0.00021917,2]
[311926660,1705504240646,-500.0,0.00021917,2]
[311926662,1705504240655,-656.33,0.00021917,2]
[311926664,1705504240665,-5715.73,0.00021917,2]
[311926666,1705504240675,-500.0,0.00021917,2]
[311926668,1705504240687,-456.79877671,0.00021917,2]
[311926670,1705504240696,-500.0,0.00021917,2]
[311926672,1705504240710,-1194.57,0.00021917,2]
[311926674,1705504240720,-717.95,0.00021917,2]
[311926676,1705504240730,-500.0,0.00021917,2]
[311926678,1705504240739,-500.0,0.00021917,2]
[311926680,1705504240750,-500.0,0.00021917,2]
[311926682,1705504240762,-500.0,0.00021917,2]
[311926684,1705504240771,-500.0,0.00021917,2]
[311926686,1705504240780,-500.0,0.00021917,2]
[311926688,1705504240790,-500.0,0.00021917,2]
[311926690,1705504240799,-722.74,0.00021917,2]
[311926692,1705504240808,-500.0,0.00021917,2]
[311926694,1705504240817,-500.0,0.00021917,2]
[311926696,1705504240827,-1505.14,0.00021917,2]
[311926698,1705504240836,-230.02217805,0.00021917,2]
[311926700,1705504240844,-500.0,0.00021917,2]
[311926702,1705504240854,-500.0,0.00021917,2]
[311926704,1705504240863,-500.0,0.00021917,2]
[311926706,1705504240872,-500.0,0.00021917,5]
[311926708,1705504240880,-12823.16,0.00021917,2]
[311926710,1705504240890,-1887.62,0.00021917,2]
[311926712,1705504240900,-500.0,0.00021917,2]
[311926714,1705504240909,-500.0,0.00021917,2]
[311926716,1705504240918,-500.0,0.00021917,2]
[311926718,1705504240927,-500.0,0.00021917,2]
[311926720,1705504240938,-500.0,0.00021917,2]
[311926722,1705504240947,-1130.85,0.00021917,2]
[311926724,1705504240960,-500.0,0.00021917,2]
[311926726,1705504240969,-500.0,0.00021917,2]
[311926728,1705504240978,-1482.98,0.00021917,2]
[311926730,1705504240988,-606.13,0.00021917,2]
[311926732,1705504240997,-500.0,0.00021917,2]
[311926734,1705504241006,-1589.01,0.00021917,2]
[311926736,1705504241015,-500.0,0.00021917,2]
[311926738,1705504241025,-500.0,0.00021917,2]
[311926740,1705504241034,-2415.92,0.00021917,2]